{"text_format":"1","workbook":"xlsx","n_sheets":3,"sheets":["Hoja1","Hoja2","Hoja3"],"not_rendered":{"charts":0,"images":0,"macros":1,"external_links":0,"defined_names":0,"comments":0,"pivot_tables":0},"unopened":[],"bounds":{"document_bytes":16777216,"sheet_cells":100000,"rows_first":2000,"rows_last":500,"rows_between":2000,"halvings":0,"cell_chars":16384,"cell_head_chars":4096},"cells_cut":0,"cells_raw":0,"read":"whole","date_system":"1900"}

{"sheet":"Hoja1","index":0,"n_rows":21,"n_cols":5,"rows_kept":21,"cut":false,"hidden":false,"merged":[]}
["Nombre del Participante","Nombre del Curso","EXAMEN INICIAL","EXAMEN FINAL","CERTIFICADO/CONSTANCIA"]
["Participante 1","CURSO 1",14,11,{"$f":"IF((C2+D2)/2>=11,\"CERTIFICADO\",\"CONSTANCIA\")","v":"CERTIFICADO"}]
["Participante 2","CURSO 1",15,9,{"$f":"IF((C3+D3)/2>=11,\"CERTIFICADO\",\"CONSTANCIA\")","v":"CERTIFICADO"}]
["Participante 3","CURSO 1",12,8,"CONSTANCIA"]
["Participante 4","CURSO 2",11,"SIN NOTA",{"$error":"#VALUE!"}]
["Participante 5","CURSO 2",20,8,"CERTIFICADO"]
["Participante 6","CURSO 2",11,"SIN NOTA",{"$error":"#VALUE!"}]
["Participante 7","CURSO 3",10,7,"CONSTANCIA"]
["Participante 8","CURSO 3",16,10,"CERTIFICADO"]
["Participante 9","CURSO 4",10,11,"CONSTANCIA"]
["Participante 10","CURSO 4",12,12,"CERTIFICADO"]
["Participante 11","CURSO 5",13,13,"CERTIFICADO"]
["Participante 12","CURSO 5",14,14,"CERTIFICADO"]
["Participante 13","CURSO 6",15,"SIN NOTA",{"$error":"#VALUE!"}]
["Participante 14","CURSO 6",12,16,"CERTIFICADO"]
["Participante 15","CURSO 6",11,18,"CERTIFICADO"]
["Participante 16","CURSO 7",10,"SIN NOTA",{"$error":"#VALUE!"}]
["Participante 17","CURSO 7",9,12,"CONSTANCIA"]
["Participante 18","CURSO 8",8,"SIN NOTA",{"$error":"#VALUE!"}]
["Participante 19","CURSO 8",7,18,"CERTIFICADO"]
["Participante 20","CURSO 8",5,17,"CERTIFICADO"]

{"sheet":"Hoja2","index":1,"n_rows":0,"n_cols":0,"rows_kept":0,"cut":false,"hidden":false,"merged":[]}

{"sheet":"Hoja3","index":2,"n_rows":0,"n_cols":0,"rows_kept":0,"cut":false,"hidden":false,"merged":[]}